[Event "Late-Titled-Tuesday-Blitz-January-16-2024"]
[Site "Chess.com"]
[Date "2024.01.16"]
[Round "3"]
[White "MyDream003"]
[Black "cristianserban1"]
[Result "1-0"]
[WhiteElo "2857"]
[BlackElo "2526"]
[TimeControl "180+1"]
[EndTime "14:25:36 PST"]
[Termination "MyDream003 won by resignation"]

1. Nf3 {[%clk 0:02:59.8]} 1... d5 {[%clk 0:02:58.6]} 2. b3 {[%clk 0:02:52.8]}
2... Nf6 {[%clk 0:02:57.1]} 3. Bb2 {[%clk 0:02:51.6]} 3... c5 {[%clk 0:02:57.3]}
4. g3 {[%clk 0:02:50.5]} 4... e6 {[%clk 0:02:51.3]} 5. Bg2 {[%clk 0:02:50.2]}
5... Be7 {[%clk 0:02:47.9]} 6. O-O {[%clk 0:02:49.6]} 6... O-O {[%clk
0:02:48.5]} 7. e3 {[%clk 0:02:47.7]} 7... Nc6 {[%clk 0:02:45.7]} 8. d4 {[%clk
0:02:45.6]} 8... cxd4 {[%clk 0:02:43.4]} 9. Nxd4 {[%clk 0:02:45.1]} 9... Qc7
{[%clk 0:02:23.9]} 10. Nd2 {[%clk 0:02:43.9]} 10... Rd8 {[%clk 0:02:01.5]} 11.
Nxc6 {[%clk 0:02:35.4]} 11... bxc6 {[%clk 0:02:00.7]} 12. Qe2 {[%clk 0:02:35.4]}
12... a5 {[%clk 0:01:59.9]} 13. c4 {[%clk 0:02:34.2]} 13... a4 {[%clk
0:01:49.4]} 14. Rfc1 {[%clk 0:02:21.9]} 14... a3 {[%clk 0:01:49.3]} 15. Bc3
{[%clk 0:02:20.6]} 15... Ba6 {[%clk 0:01:47.4]} 16. Bf1 {[%clk 0:02:15.6]} 16...
Qb7 {[%clk 0:01:41.1]} 17. Qe1 {[%clk 0:02:14.6]} 17... Nd7 {[%clk 0:01:37.4]}
18. Rab1 {[%clk 0:02:11.1]} 18... Bb4 {[%clk 0:00:42.6]} 19. Nf3 {[%clk
0:02:04.4]} 19... Rab8 {[%clk 0:00:33.5]} 20. Bxb4 {[%clk 0:01:48.8]} 20... Qxb4
{[%clk 0:00:33.6]} 21. Qxb4 {[%clk 0:01:49]} 21... Rxb4 {[%clk 0:00:33.8]} 22.
Nd4 {[%clk 0:01:49.7]} 22... Rb6 {[%clk 0:00:21]} 23. c5 {[%clk 0:01:46.5]}
23... Bxf1 {[%clk 0:00:12.5]} 24. cxb6 {[%clk 0:01:46.4]} 24... Bd3 {[%clk
0:00:13.4]} 25. Nxc6 {[%clk 0:01:45]} 25... Re8 {[%clk 0:00:10.3]} 26. b7 {[%clk
0:01:44.3]} 26... Bxb1 {[%clk 0:00:08.3]} 27. Rxb1 {[%clk 0:01:45.2]} 27... Nb8
{[%clk 0:00:02.8]} 28. Nxb8 {[%clk 0:01:44.1]} 28... Rxb8 {[%clk 0:00:02.9]} 29.
Rc1 {[%clk 0:01:44.8]} 1-0

[Event "Late-Titled-Tuesday-Blitz-January-16-2024"]
[Site "Chess.com"]
[Date "2024.01.16"]
[Round "3"]
[White "Road2GM3000"]
[Black "IMRosen"]
[Result "0-1"]
[WhiteElo "2483"]
[BlackElo "2670"]
[TimeControl "180+1"]
[EndTime "14:25:39 PST"]
[Termination "IMRosen won by resignation"]

1. d4 {[%clk 0:03:00.9]} 1... d5 {[%clk 0:02:57.7]} 2. c4 {[%clk 0:03:00.9]}
2... e6 {[%clk 0:02:58.2]} 3. Nc3 {[%clk 0:03:00.9]} 3... Nf6 {[%clk 0:02:58.7]}
4. cxd5 {[%clk 0:03:01.4]} 4... exd5 {[%clk 0:02:59.6]} 5. Bg5 {[%clk
0:03:01.5]} 5... c6 {[%clk 0:03:00.3]} 6. e3 {[%clk 0:03:02]} 6... h6 {[%clk
0:02:57.6]} 7. Bh4 {[%clk 0:03:01.5]} 7... Bd6 {[%clk 0:02:58.3]} 8. Bd3 {[%clk
0:02:58.2]} 8... O-O {[%clk 0:02:58.7]} 9. Qc2 {[%clk 0:02:56.1]} 9... Re8
{[%clk 0:02:58.1]} 10. Nf3 {[%clk 0:02:46.4]} 10... Be6 {[%clk 0:02:57]} 11. Ne5
{[%clk 0:02:41]} 11... c5 {[%clk 0:02:57.4]} 12. O-O {[%clk 0:02:31.2]} 12...
cxd4 {[%clk 0:02:57.9]} 13. exd4 {[%clk 0:02:30.4]} 13... Nc6 {[%clk 0:02:58.6]}
14. Nxc6 {[%clk 0:02:27.5]} 14... bxc6 {[%clk 0:02:59.5]} 15. Bg3 {[%clk
0:02:16.3]} 15... Bxg3 {[%clk 0:02:59.5]} 16. hxg3 {[%clk 0:02:17.2]} 16... Ng4
{[%clk 0:03:00]} 17. Na4 {[%clk 0:02:04.7]} 17... Qg5 {[%clk 0:02:55.8]} 18. Be2
{[%clk 0:01:54.3]} 18... Bf5 {[%clk 0:02:55.7]} 19. Qd1 {[%clk 0:01:53.8]} 19...
Rxe2 {[%clk 0:02:53.7]} 20. Qxe2 {[%clk 0:01:32.2]} 20... Qh5 {[%clk 0:02:53]}
21. Qxg4 {[%clk 0:01:31]} 21... Bxg4 {[%clk 0:02:49.3]} 22. Rfe1 {[%clk
0:01:27.3]} 22... f6 {[%clk 0:02:45.3]} 23. Re7 {[%clk 0:01:24.2]} 23... Re8
{[%clk 0:02:25.9]} 24. Rae1 {[%clk 0:01:08.1]} 24... Rxe7 {[%clk 0:02:25.2]} 25.
Rxe7 {[%clk 0:01:09]} 25... a5 {[%clk 0:02:15.4]} 26. Ra7 {[%clk 0:01:01.1]}
26... Qf5 {[%clk 0:02:01.8]} 27. Nc5 {[%clk 0:00:54.9]} 27... Qb1+ {[%clk
0:01:59.7]} 28. Kh2 {[%clk 0:00:54.7]} 28... Qe1 {[%clk 0:01:53.4]} 29. Nd3
{[%clk 0:00:48.8]} 29... Qd2 {[%clk 0:01:46]} 30. Nf4 {[%clk 0:00:42.5]} 30...
Qxf2 {[%clk 0:01:41.8]} 31. Rxa5 {[%clk 0:00:37.3]} 31... Qxd4 {[%clk
0:01:32.4]} 32. Ra8+ {[%clk 0:00:25.2]} 32... Kh7 {[%clk 0:01:29.3]} 33. a4
{[%clk 0:00:25.9]} 33... g5 {[%clk 0:01:24.6]} 34. Ra7+ {[%clk 0:00:23.5]} 34...
Qxa7 {[%clk 0:01:23.6]} 0-1

[Event "Late-Titled-Tuesday-Blitz-January-16-2024"]
[Site "Chess.com"]
[Date "2024.01.16"]
[Round "3"]
[White "Firouzja2003"]
[Black "MightyGMpretender"]
[Result "1-0"]
[WhiteElo "3169"]
[BlackElo "2820"]
[TimeControl "180+1"]
[EndTime "14:25:45 PST"]
[Termination "Firouzja2003 won by checkmate"]

1. e4 {[%clk 0:02:53.5]} 1... g6 {[%clk 0:02:56.2]} 2. d4 {[%clk 0:02:53.3]}
2... Bg7 {[%clk 0:02:56.8]} 3. Nc3 {[%clk 0:02:52]} 3... a6 {[%clk 0:02:57.1]}
4. f4 {[%clk 0:02:51.8]} 4... d5 {[%clk 0:02:57.4]} 5. e5 {[%clk 0:02:44.2]}
5... Nh6 {[%clk 0:02:45.6]} 6. Be2 {[%clk 0:02:36.2]} 6... Bf8 {[%clk
0:02:32.5]} 7. Be3 {[%clk 0:02:31.8]} 7... Nf5 {[%clk 0:02:21.7]} 8. Bf2 {[%clk
0:02:31.3]} 8... h5 {[%clk 0:02:06.6]} 9. Nf3 {[%clk 0:02:31]} 9... e6 {[%clk
0:02:02.4]} 10. O-O {[%clk 0:02:30.6]} 10... Nd7 {[%clk 0:01:56.6]} 11. Nb1
{[%clk 0:02:24.8]} 11... Nb6 {[%clk 0:01:55.9]} 12. Nbd2 {[%clk 0:02:24.3]}
12... Be7 {[%clk 0:01:53.9]} 13. b3 {[%clk 0:02:22.7]} 13... Bb4 {[%clk
0:01:37.3]} 14. c4 {[%clk 0:02:20.1]} 14... dxc4 {[%clk 0:01:34.4]} 15. bxc4
{[%clk 0:02:07.7]} 15... Bc3 {[%clk 0:01:27.8]} 16. Rc1 {[%clk 0:01:58]} 16...
Bxd4 {[%clk 0:01:28.1]} 17. Nxd4 {[%clk 0:01:55.2]} 17... Nxd4 {[%clk
0:01:28.3]} 18. Ne4 {[%clk 0:01:55.5]} 18... Nxe2+ {[%clk 0:01:25.6]} 19. Qxe2
{[%clk 0:01:56.1]} 19... Nd7 {[%clk 0:01:21.3]} 20. Rfd1 {[%clk 0:01:52.1]}
20... Qe7 {[%clk 0:01:21.6]} 21. Rxd7 {[%clk 0:01:31.7]} 21... Bxd7 {[%clk
0:01:21.8]} 22. Bc5 {[%clk 0:01:18.5]} 22... Qh4 {[%clk 0:01:22.2]} 23. g3
{[%clk 0:01:17]} 23... Qh3 {[%clk 0:01:20.4]} 24. Nf6+ {[%clk 0:01:17.2]} 24...
Kd8 {[%clk 0:01:20.6]} 25. Qd3 {[%clk 0:01:17.3]} 25... Kc8 {[%clk 0:01:14]} 26.
Qxd7+ {[%clk 0:01:16.6]} 26... Kb8 {[%clk 0:01:14.6]} 27. Bd6 {[%clk 0:00:59.8]}
27... Rc8 {[%clk 0:01:00]} 28. Bxc7+ {[%clk 0:00:57.9]} 28... Rxc7 {[%clk
0:00:59.9]} 29. Qd8+ {[%clk 0:00:58.8]} 29... Ka7 {[%clk 0:00:53.4]} 30. Qxc7
{[%clk 0:00:57.7]} 30... h4 {[%clk 0:00:50.9]} 31. Qc5+ {[%clk 0:00:56]} 31...
Kb8 {[%clk 0:00:49.7]} 32. Nd7# {[%clk 0:00:55.1]} 1-0

[Event "Late-Titled-Tuesday-Blitz-January-16-2024"]
[Site "Chess.com"]
[Date "2024.01.16"]
[Round "3"]
[White "crazy_but_lazy"]
[Black "Gryffindorac8"]
[Result "1-0"]
[WhiteElo "2588"]
[BlackElo "2379"]
[TimeControl "180+1"]
[EndTime "14:25:46 PST"]
[Termination "crazy_but_lazy won by resignation"]

1. e4 {[%clk 0:02:55]} 1... c5 {[%clk 0:02:59.6]} 2. Nf3 {[%clk 0:02:55]} 2...
d6 {[%clk 0:02:59.6]} 3. d4 {[%clk 0:02:53.8]} 3... cxd4 {[%clk 0:03:00.5]} 4.
Qxd4 {[%clk 0:02:54.3]} 4... Nc6 {[%clk 0:02:59]} 5. Bb5 {[%clk 0:02:53.3]} 5...
Bd7 {[%clk 0:02:58.4]} 6. Qd3 {[%clk 0:02:52.1]} 6... Nf6 {[%clk 0:02:54]} 7.
Nc3 {[%clk 0:02:50.9]} 7... e6 {[%clk 0:02:43.3]} 8. Bg5 {[%clk 0:02:50]} 8...
Be7 {[%clk 0:02:43.5]} 9. O-O-O {[%clk 0:02:50.2]} 9... O-O {[%clk 0:02:40.7]}
10. Rhe1 {[%clk 0:02:49.5]} 10... Qa5 {[%clk 0:02:33.6]} 11. Kb1 {[%clk
0:02:42.9]} 11... a6 {[%clk 0:02:29.4]} 12. Bxc6 {[%clk 0:02:41.9]} 12... Bxc6
{[%clk 0:02:30.3]} 13. h4 {[%clk 0:02:31.8]} 13... h6 {[%clk 0:02:26.7]} 14. Bd2
{[%clk 0:02:28.6]} 14... Qc7 {[%clk 0:02:20.3]} 15. Nd4 {[%clk 0:02:25.9]} 15...
b5 {[%clk 0:02:08.9]} 16. f3 {[%clk 0:02:24.7]} 16... Rfc8 {[%clk 0:02:06]} 17.
g4 {[%clk 0:02:24.1]} 17... Nd7 {[%clk 0:02:00.8]} 18. g5 {[%clk 0:02:22.2]}
18... Ne5 {[%clk 0:01:51.2]} 19. Qe2 {[%clk 0:02:12.8]} 19... b4 {[%clk
0:01:46.1]} 20. f4 {[%clk 0:02:08.8]} 20... bxc3 {[%clk 0:01:41.9]} 21. Bxc3
{[%clk 0:02:09.7]} 21... Ng6 {[%clk 0:01:33.4]} 22. gxh6 {[%clk 0:01:59.8]}
22... Rab8 {[%clk 0:01:19.5]} 23. f5 {[%clk 0:01:54.2]} 23... Bb5 {[%clk
0:00:51.3]} 24. Qe3 {[%clk 0:01:32.6]} 24... Be8 {[%clk 0:00:23]} 25. Ka1 {[%clk
0:01:26.1]} 25... Ne5 {[%clk 0:00:18.1]} 26. hxg7 {[%clk 0:01:25]} 26... Bf6
{[%clk 0:00:16.2]} 27. Qh6 {[%clk 0:01:24.3]} 27... Bxg7 {[%clk 0:00:15.8]} 28.
Rg1 {[%clk 0:01:25.1]} 28... f6 {[%clk 0:00:15.6]} 29. Nxe6 {[%clk 0:01:23.3]}
1-0

[Event "Late-Titled-Tuesday-Blitz-January-16-2024"]
[Site "Chess.com"]
[Date "2024.01.16"]
[Round "3"]
[White "ZuraTqebuchava"]
[Black "Roedor"]
[Result "0-1"]
[WhiteElo "2136"]
[BlackElo "2362"]
[TimeControl "180+1"]
[EndTime "14:25:46 PST"]
[Termination "Roedor won on time"]

1. e4 {[%clk 0:03:00.9]} 1... e5 {[%clk 0:02:56.7]} 2. Nf3 {[%clk 0:03:00.8]}
2... Nc6 {[%clk 0:02:56.1]} 3. Bb5 {[%clk 0:02:59.7]} 3... Nf6 {[%clk
0:02:55.6]} 4. O-O {[%clk 0:02:58.9]} 4... Nxe4 {[%clk 0:02:55.3]} 5. Re1 {[%clk
0:02:58.1]} 5... Nd6 {[%clk 0:02:55.2]} 6. Bxc6 {[%clk 0:02:57.6]} 6... dxc6
{[%clk 0:02:54.7]} 7. Nxe5 {[%clk 0:02:58.1]} 7... Be7 {[%clk 0:02:55.3]} 8. d4
{[%clk 0:02:57.5]} 8... O-O {[%clk 0:02:55]} 9. c3 {[%clk 0:02:58.1]} 9... Bf6
{[%clk 0:02:55.1]} 10. Bf4 {[%clk 0:02:55.3]} 10... Bg5 {[%clk 0:02:49.1]} 11.
Qf3 {[%clk 0:02:34.9]} 11... Be6 {[%clk 0:02:43.5]} 12. Nd2 {[%clk 0:02:30.4]}
12... a5 {[%clk 0:02:37.6]} 13. a4 {[%clk 0:02:25]} 13... Qf6 {[%clk 0:02:29.1]}
14. Bxg5 {[%clk 0:02:19.6]} 14... Qxg5 {[%clk 0:02:30]} 15. Qe3 {[%clk 0:02:08]}
15... Qxe3 {[%clk 0:02:28.9]} 16. Rxe3 {[%clk 0:02:07.7]} 16... Rfe8 {[%clk
0:02:24.7]} 17. h3 {[%clk 0:02:06]} 17... f6 {[%clk 0:02:23.8]} 18. Nef3 {[%clk
0:02:03.6]} 18... Bd5 {[%clk 0:02:23.3]} 19. Rae1 {[%clk 0:01:59.2]} 19... Rxe3
{[%clk 0:02:23.1]} 20. Rxe3 {[%clk 0:01:56.5]} 20... Kf7 {[%clk 0:02:23.2]} 21.
b3 {[%clk 0:01:48.8]} 21... b5 {[%clk 0:02:22.6]} 22. Ne1 {[%clk 0:01:38.2]}
22... Rb8 {[%clk 0:02:10]} 23. axb5 {[%clk 0:01:32.6]} 23... cxb5 {[%clk
0:02:08.6]} 24. Nd3 {[%clk 0:01:31.1]} 24... a4 {[%clk 0:02:08.4]} 25. Nb4
{[%clk 0:01:28.1]} 25... Bxb3 {[%clk 0:01:53]} 26. Nb1 {[%clk 0:01:14]} 26...
Nc4 {[%clk 0:01:43.3]} 27. Re2 {[%clk 0:01:10.4]} 27... Re8 {[%clk 0:01:35.7]}
28. Rxe8 {[%clk 0:00:52.5]} 28... Kxe8 {[%clk 0:01:36.6]} 0-1

[Event "Late-Titled-Tuesday-Blitz-January-16-2024"]
[Site "Chess.com"]
[Date "2024.01.16"]
[Round "3"]
[White "Elsa167"]
[Black "Hikaru"]
[Result "0-1"]
[WhiteElo "2850"]
[BlackElo "3234"]
[TimeControl "180+1"]
[EndTime "14:25:50 PST"]
[Termination "Hikaru won by resignation"]

1. d4 {[%clk 0:03:00.9]} 1... g6 {[%clk 0:02:59.3]} 2. c4 {[%clk 0:03:00.8]}
2... Bg7 {[%clk 0:02:59.8]} 3. e4 {[%clk 0:03:01.4]} 3... d6 {[%clk 0:02:59.4]}
4. Nc3 {[%clk 0:03:01.9]} 4... Nd7 {[%clk 0:02:58.3]} 5. Nf3 {[%clk 0:02:59.1]}
5... c5 {[%clk 0:02:58.9]} 6. Be3 {[%clk 0:02:53.9]} 6... b6 {[%clk 0:02:57.6]}
7. Be2 {[%clk 0:02:48.7]} 7... Bb7 {[%clk 0:02:57.5]} 8. O-O {[%clk 0:02:48.9]}
8... Ngf6 {[%clk 0:02:57.5]} 9. d5 {[%clk 0:02:48.8]} 9... O-O {[%clk 0:02:56]}
10. h3 {[%clk 0:02:48.2]} 10... a6 {[%clk 0:02:55]} 11. Qd2 {[%clk 0:02:46.3]}
11... Re8 {[%clk 0:02:52.9]} 12. Rfe1 {[%clk 0:02:37.5]} 12... Qc7 {[%clk
0:02:47.9]} 13. a3 {[%clk 0:02:35.5]} 13... e6 {[%clk 0:02:47.5]} 14. Bh6 {[%clk
0:02:26.7]} 14... e5 {[%clk 0:02:34.4]} 15. Be3 {[%clk 0:02:21.1]} 15... Nh5
{[%clk 0:02:34.5]} 16. Rab1 {[%clk 0:02:11.1]} 16... Bc8 {[%clk 0:02:32.4]} 17.
b4 {[%clk 0:02:10.6]} 17... Nf8 {[%clk 0:02:23.2]} 18. bxc5 {[%clk 0:02:09.5]}
18... bxc5 {[%clk 0:02:23.4]} 19. Bd1 {[%clk 0:02:01.4]} 19... f5 {[%clk
0:02:16.5]} 20. Ba4 {[%clk 0:01:42.6]} 20... Bd7 {[%clk 0:02:16.6]} 21. exf5
{[%clk 0:01:29.5]} 21... gxf5 {[%clk 0:02:12.5]} 22. Bxd7 {[%clk 0:01:19.2]}
22... Qxd7 {[%clk 0:02:13.4]} 23. Bh6 {[%clk 0:01:18.8]} 23... Ng6 {[%clk
0:02:04.8]} 24. Bxg7 {[%clk 0:01:14.4]} 24... Qxg7 {[%clk 0:02:01.2]} 25. Qg5
{[%clk 0:01:14.1]} 25... Nhf4 {[%clk 0:01:57.1]} 26. Kh1 {[%clk 0:00:41.8]}
26... e4 {[%clk 0:01:37.9]} 27. Ng1 {[%clk 0:00:33.2]} 27... Qxc3 {[%clk
0:01:36.7]} 28. Qxf5 {[%clk 0:00:24.9]} 28... Qe5 {[%clk 0:01:31.4]} 29. Qg4
{[%clk 0:00:23.1]} 29... h5 {[%clk 0:01:31.6]} 30. Qd1 {[%clk 0:00:22.7]} 30...
Qg5 {[%clk 0:01:31.9]} 31. g3 {[%clk 0:00:23.1]} 31... Nd3 {[%clk 0:01:32.5]}
32. Re2 {[%clk 0:00:22.9]} 32... Qf5 {[%clk 0:01:32.7]} 33. Qd2 {[%clk
0:00:21.2]} 33... e3 {[%clk 0:01:30.9]} 34. Rxe3 {[%clk 0:00:13.7]} 34... Nxf2+
{[%clk 0:01:30.8]} 35. Kg2 {[%clk 0:00:14.2]} 35... Rxe3 {[%clk 0:01:31]} 36.
Qxe3 {[%clk 0:00:13.8]} 36... Qxb1 {[%clk 0:01:31.3]} 0-1

[Event "Late-Titled-Tuesday-Blitz-January-16-2024"]
[Site "Chess.com"]
[Date "2024.01.16"]
[Round "3"]
[White "Kostukov_Alex"]
[Black "Atousa"]
[Result "0-1"]
[WhiteElo "2308"]
[BlackElo "2476"]
[TimeControl "180+1"]
[EndTime "14:25:53 PST"]
[Termination "Atousa won by resignation"]

1. g3 {[%clk 0:03:00.9]} 1... d5 {[%clk 0:02:55.9]} 2. Bg2 {[%clk 0:02:59.7]}
2... Nf6 {[%clk 0:02:56.5]} 3. d3 {[%clk 0:03:00]} 3... c6 {[%clk 0:02:57.2]} 4.
e4 {[%clk 0:03:00]} 4... dxe4 {[%clk 0:02:57.2]} 5. dxe4 {[%clk 0:03:00.9]} 5...
Qxd1+ {[%clk 0:02:57.2]} 6. Kxd1 {[%clk 0:03:01.8]} 6... e5 {[%clk 0:02:57.4]}
7. f3 {[%clk 0:03:02.3]} 7... Be6 {[%clk 0:02:48.2]} 8. Nd2 {[%clk 0:02:55.4]}
8... Na6 {[%clk 0:02:43.4]} 9. Bh3 {[%clk 0:02:54.3]} 9... O-O-O {[%clk
0:02:34.7]} 10. Bxe6+ {[%clk 0:02:51.2]} 10... fxe6 {[%clk 0:02:35.6]} 11. Nh3
{[%clk 0:02:46.9]} 11... h6 {[%clk 0:02:34.3]} 12. c3 {[%clk 0:02:43.7]} 12...
Nc5 {[%clk 0:02:33.6]} 13. Ke2 {[%clk 0:02:42.1]} 13... Nd3 {[%clk 0:02:32.2]}
14. Nc4 {[%clk 0:02:38.8]} 14... b5 {[%clk 0:02:29.7]} 15. Na5 {[%clk
0:02:34.2]} 15... Kc7 {[%clk 0:02:29.1]} 16. b4 {[%clk 0:02:15]} 16... c5 {[%clk
0:02:23.5]} 17. a3 {[%clk 0:02:13.4]} 17... Nxc1+ {[%clk 0:02:18.4]} 18. Raxc1
{[%clk 0:02:11.5]} 18... c4 {[%clk 0:02:18.6]} 19. a4 {[%clk 0:02:03.4]} 19...
a6 {[%clk 0:02:17.5]} 20. axb5 {[%clk 0:02:02.3]} 20... axb5 {[%clk 0:02:18.4]}
21. Rhd1 {[%clk 0:02:01.8]} 21... Be7 {[%clk 0:02:18.6]} 22. Rxd8 {[%clk
0:01:57.6]} 22... Rxd8 {[%clk 0:02:18.2]} 23. Nf2 {[%clk 0:01:43.8]} 23... Nd7
{[%clk 0:02:13.8]} 24. f4 {[%clk 0:01:32.5]} 24... exf4 {[%clk 0:01:56.1]} 25.
gxf4 {[%clk 0:01:33.4]} 25... Nb6 {[%clk 0:01:56.2]} 26. Rg1 {[%clk 0:01:22.8]}
26... g5 {[%clk 0:01:54.5]} 27. h4 {[%clk 0:00:45.9]} 27... Na4 {[%clk
0:01:52.1]} 28. hxg5 {[%clk 0:00:39.3]} 28... Nxc3+ {[%clk 0:01:51.4]} 29. Kf3
{[%clk 0:00:33.4]} 29... hxg5 {[%clk 0:01:50.6]} 30. fxg5 {[%clk 0:00:22.7]}
30... Rf8+ {[%clk 0:01:41.7]} 31. Ke3 {[%clk 0:00:16.2]} 31... Bxb4 {[%clk
0:01:41.9]} 32. Ng4 {[%clk 0:00:11.1]} 32... Bc5+ {[%clk 0:01:33.5]} 33. Kd2
{[%clk 0:00:09.5]} 33... Nxe4+ {[%clk 0:01:33.5]} 34. Ke2 {[%clk 0:00:06.1]}
34... Bxg1 {[%clk 0:01:34]} 0-1

[Event "Late-Titled-Tuesday-Blitz-January-16-2024"]
[Site "Chess.com"]
[Date "2024.01.16"]
[Round "3"]
[White "Actuary44"]
[Black "jk13"]
[Result "0-1"]
[WhiteElo "2489"]
[BlackElo "2687"]
[TimeControl "180+1"]
[EndTime "14:25:56 PST"]
[Termination "jk13 won by checkmate"]

1. e4 {[%clk 0:02:55.6]} 1... e5 {[%clk 0:02:59.5]} 2. Nf3 {[%clk 0:02:53.2]}
2... Nc6 {[%clk 0:03:00.1]} 3. Bb5 {[%clk 0:02:53.3]} 3... a6 {[%clk 0:02:59.8]}
4. Ba4 {[%clk 0:02:53.7]} 4... Nf6 {[%clk 0:03:00.5]} 5. d3 {[%clk 0:02:53.9]}
5... b5 {[%clk 0:03:01.1]} 6. Bb3 {[%clk 0:02:53.9]} 6... Bc5 {[%clk 0:03:01.9]}
7. a4 {[%clk 0:02:54.3]} 7... Rb8 {[%clk 0:03:01.7]} 8. axb5 {[%clk 0:02:54.7]}
8... axb5 {[%clk 0:03:02.6]} 9. O-O {[%clk 0:02:54.7]} 9... d6 {[%clk
0:03:03.2]} 10. h3 {[%clk 0:02:55.1]} 10... O-O {[%clk 0:03:03.3]} 11. Bg5
{[%clk 0:02:53.8]} 11... h6 {[%clk 0:03:03.8]} 12. Bh4 {[%clk 0:02:54.2]} 12...
Re8 {[%clk 0:03:00.2]} 13. Nc3 {[%clk 0:02:53.7]} 13... Be6 {[%clk 0:03:00.2]}
14. Bd5 {[%clk 0:02:46.9]} 14... Bxd5 {[%clk 0:02:50.3]} 15. Nxd5 {[%clk
0:02:44.3]} 15... g5 {[%clk 0:02:50.5]} 16. Nxg5 {[%clk 0:02:28.4]} 16... Nxd5
{[%clk 0:02:50]} 17. exd5 {[%clk 0:02:15.1]} 17... hxg5 {[%clk 0:02:49.4]} 18.
Qg4 {[%clk 0:02:14.3]} 18... Nd4 {[%clk 0:02:16.1]} 19. Bxg5 {[%clk 0:02:11.7]}
19... Qc8 {[%clk 0:02:16.5]} 20. Qh5 {[%clk 0:02:03.4]} 20... Qf5 {[%clk
0:02:12.2]} 21. c3 {[%clk 0:02:01.3]} 21... Ne2+ {[%clk 0:02:02.5]} 22. Kh2
{[%clk 0:01:59.1]} 22... Nf4 {[%clk 0:01:56.2]} 23. Qh6 {[%clk 0:01:52.2]} 23...
Nxd5 {[%clk 0:01:28.5]} 24. Rae1 {[%clk 0:01:47.3]} 24... Qh7 {[%clk 0:01:25.6]}
25. Re4 {[%clk 0:01:33.2]} 25... Qxh6 {[%clk 0:01:20.5]} 26. Bxh6 {[%clk
0:01:34.1]} 26... f5 {[%clk 0:01:18.5]} 27. Rh4 {[%clk 0:01:33.6]} 27... Re6
{[%clk 0:01:15]} 28. Bd2 {[%clk 0:01:31.1]} 28... Ra8 {[%clk 0:01:12]} 29. b4
{[%clk 0:01:27]} 29... Bb6 {[%clk 0:01:12.1]} 30. c4 {[%clk 0:01:27.3]} 30...
bxc4 {[%clk 0:01:10.8]} 31. dxc4 {[%clk 0:01:28.2]} 31... Ne7 {[%clk 0:01:10.4]}
32. f4 {[%clk 0:01:23]} 32... Bd4 {[%clk 0:01:04.1]} 33. fxe5 {[%clk 0:01:19.5]}
33... dxe5 {[%clk 0:01:05]} 34. Rh6 {[%clk 0:01:07.5]} 34... Rxh6 {[%clk
0:01:02.7]} 35. Bxh6 {[%clk 0:01:08.4]} 35... f4 {[%clk 0:00:57.3]} 36. Rd1
{[%clk 0:01:06.5]} 36... Nf5 {[%clk 0:00:54.7]} 37. Bg5 {[%clk 0:01:06.9]} 37...
Ra2 {[%clk 0:00:53.9]} 38. h4 {[%clk 0:01:02.5]} 38... Ne3 {[%clk 0:00:51]} 39.
Rd3 {[%clk 0:01:01.3]} 39... Rxg2+ {[%clk 0:00:49.9]} 40. Kh3 {[%clk 0:01:01.3]}
40... Rg3+ {[%clk 0:00:49.8]} 41. Kh2 {[%clk 0:01:00.2]} 41... Ng4+ {[%clk
0:00:49.2]} 42. Kh1 {[%clk 0:00:59.8]} 42... Rg1# {[%clk 0:00:49.9]} 0-1

[Event "Late-Titled-Tuesday-Blitz-January-16-2024"]
[Site "Chess.com"]
[Date "2024.01.16"]
[Round "3"]
[White "TanitoluwaAps116"]
[Black "mistrzemi"]
[Result "1-0"]
[WhiteElo "2721"]
[BlackElo "2411"]
[TimeControl "180+1"]
[EndTime "14:25:57 PST"]
[Termination "TanitoluwaAps116 won by resignation"]

1. e4 {[%clk 0:03:00.9]} 1... e6 {[%clk 0:02:50.9]} 2. d4 {[%clk 0:02:59.7]}
2... d5 {[%clk 0:02:51.8]} 3. exd5 {[%clk 0:02:57]} 3... exd5 {[%clk 0:02:52]}
4. Nf3 {[%clk 0:02:52.4]} 4... Nf6 {[%clk 0:02:52.4]} 5. Bd3 {[%clk 0:02:45.8]}
5... Bd6 {[%clk 0:02:52.4]} 6. O-O {[%clk 0:02:39.4]} 6... O-O {[%clk
0:02:52.5]} 7. h3 {[%clk 0:02:26.6]} 7... c6 {[%clk 0:02:52.4]} 8. Nc3 {[%clk
0:02:15.5]} 8... Nbd7 {[%clk 0:02:52.7]} 9. Re1 {[%clk 0:02:04.7]} 9... Qc7
{[%clk 0:02:52.3]} 10. Ne2 {[%clk 0:01:53.6]} 10... Re8 {[%clk 0:02:48.7]} 11.
b3 {[%clk 0:01:49.9]} 11... Nf8 {[%clk 0:02:48.4]} 12. c4 {[%clk 0:01:50]} 12...
Bb4 {[%clk 0:02:35.4]} 13. Bf4 {[%clk 0:01:40.7]} 13... Qa5 {[%clk 0:02:31.7]}
14. Rf1 {[%clk 0:01:37.5]} 14... Ne6 {[%clk 0:02:30.7]} 15. Be5 {[%clk 0:01:28]}
15... Nd7 {[%clk 0:02:30.9]} 16. a3 {[%clk 0:01:24.6]} 16... Bf8 {[%clk
0:02:26.3]} 17. b4 {[%clk 0:01:24.6]} 17... Qd8 {[%clk 0:02:25]} 18. cxd5 {[%clk
0:01:24.7]} 18... cxd5 {[%clk 0:02:16.3]} 19. Nc3 {[%clk 0:01:22.6]} 19... Nxe5
{[%clk 0:02:15.7]} 20. dxe5 {[%clk 0:01:22.6]} 20... g6 {[%clk 0:02:12.8]} 21.
Bb5 {[%clk 0:01:20.2]} 21... Bd7 {[%clk 0:01:48.4]} 22. Bxd7 {[%clk 0:01:20]}
22... Qxd7 {[%clk 0:01:49.3]} 23. Nxd5 {[%clk 0:01:20.5]} 23... Kh8 {[%clk
0:01:50]} 24. Qb3 {[%clk 0:01:12.8]} 24... Red8 {[%clk 0:01:46.1]} 25. Rad1
{[%clk 0:01:12.3]} 25... Bg7 {[%clk 0:01:43.2]} 26. Nf4 {[%clk 0:01:02.8]} 26...
Qc6 {[%clk 0:01:30]} 27. Nxe6 {[%clk 0:01:02.2]} 27... Qxe6 {[%clk 0:01:30.9]}
28. Qxe6 {[%clk 0:01:01.7]} 28... fxe6 {[%clk 0:01:31.8]} 29. Ng5 {[%clk
0:01:01.7]} 29... Rxd1 {[%clk 0:01:13.3]} 30. Rxd1 {[%clk 0:01:00.7]} 30... h6
{[%clk 0:01:14.2]} 31. Nxe6 {[%clk 0:00:56.3]} 31... Bxe5 {[%clk 0:01:14.3]} 32.
f4 {[%clk 0:00:53.4]} 32... Re8 {[%clk 0:01:05.8]} 33. fxe5 {[%clk 0:00:47.3]}
33... Rxe6 {[%clk 0:01:05.7]} 34. Rd8+ {[%clk 0:00:47.4]} 34... Kg7 {[%clk
0:00:59.5]} 35. Rd7+ {[%clk 0:00:47.7]} 35... Kg8 {[%clk 0:01:00]} 36. Rxb7
{[%clk 0:00:47.9]} 36... a6 {[%clk 0:00:55.4]} 37. Ra7 {[%clk 0:00:48.1]} 37...
Rxe5 {[%clk 0:00:55.1]} 38. Rxa6 {[%clk 0:00:48]} 38... Re2 {[%clk 0:00:55.6]}
39. Rxg6+ {[%clk 0:00:47.2]} 1-0